Cogmind - Beta 13 *** ADVENTURER MODE // 2024.04.02 @ 07:48:50 Player: A Moose Result: Destroyed by Y-45 Defender with Heavy Assault Rifle Performance ------------- Evolutions (0) 0 Regions Visited (4) 800 Robots Destroyed (48) 240 Value Destroyed (1079) 1079 Prototype IDs (2) 40 Alien Tech Used (0) 0 Bonus (0) 0 TOTAL SCORE: 2159 Bonus ------- None Cogmind --------- Core Integrity 0/250 Matter 290/300 Energy 265/265 System Corruption 0% Temperature Cool (7) Movement Treading (160) Location -9/Recycling Parts ------- > --- POWER (1) -------- Improved Ion Engine > --- PROPULSION (2) --- Light Treads Spiked Treads > --- UTILITY (2) ------ Scrap Engine > --- WEAPON (2) ------- Battle Cannon Battle Cannon > --- INVENTORY (5) ---- Improved Sensor Array EMP Blaster Subdweller Shrapnel Launcher Flamer Peak State ------------ > --- POWER ------------ Improved Ion Engine > --- PROPULSION ------- Light Treads Spiked Treads > --- UTILITY ---------- Scrap Engine > --- WEAPON ----------- Battle Cannon Battle Cannon > --- INVENTORY -------- Improved Sensor Array Subdweller Shrapnel Launcher Flamer [Rating: 25] Favorites ----------- Power Ion Engine Engine Ion Engine Propulsion Light Treads Treads Light Treads Utility Small Storage Unit Device Seismic Detector Storage Small Storage Unit Processor Signal Interpreter Weapon Battle Cannon Energy Gun Medium Laser Energy Cannon Subdweller Beam Cannon Ballistic Cannon Battle Cannon Launcher Rocket Launcher Build | -11 -10 -10 -10 -9 ------- Run | Yrd Mat Min Sub Rec Slots Evolved . | . . . . . Power . | . . . . . Propulsion . | . . . . . Utility . | . . . . . Weapon . | . . . . . Parts Attached 24 | 6 2 3 11 2 Power 5 | 1 . . 3 1 Engine 5 | 1 . . 3 1 Core . | . . . . . Reactor . | . . . . . Propulsion 5 | 2 . . 3 . Treads 5 | 2 . . 3 . Leg . | . . . . . Wheel . | . . . . . Hover . | . . . . . Flight . | . . . . . Utility 6 | 1 1 2 1 1 Device 4 | . 1 2 . 1 Storage 1 | 1 . . . . Processor 1 | . . . 1 . Hackware . | . . . . . Protection . | . . . . . Artifact . | . . . . . Weapon 8 | 2 1 1 4 . Energy Gun 2 | 2 . . . . Energy Cannon 1 | . . . 1 . Ballistic Gun . | . . . . . Ballistic Cannon 3 | . . . 3 . Launcher 2 | . 1 1 . . Special Weapon . | . . . . . Impact Weapon . | . . . . . Slashing Weapon . | . . . . . Piercing Weapon . | . . . . . Special Melee Weapon . | . . . . . Unidentified Prototypes . | . . . . . Parts Lost 5 | . . 1 4 . Power 2 | . . . 2 . Propulsion 2 | . . . 2 . Utility . | . . . . . Weapon 1 | . . 1 . . Highest Loss Streak 2 | . . 1 2 . To Critical Strikes 1 | . . . 1 . Average Slot Usage (%) 90 | . 86 91 93 82 Engine 12 | . 14 14 12 11 Treads 27 | . 28 28 26 28 Device 9 | . 12 14 4 13 Storage 12 | . 14 14 14 . Processor 4 | . . . 9 . Energy Cannon 3 | . . . 7 . Ballistic Cannon 10 | . . . 15 28 Launcher 7 | . 11 19 1 . Naked Turns . | . . . . . Heaviest Build 21 | 14 15 19 21 14 Greatest Support 40 | 40 40 40 40 40 Greatest Overweight (x) 2 | . . . 2 . Average Overweight (x) . | . . . . . Largest Inventory Capacity 8 | 8 8 8 8 8 Average Capacity 7 | 6 8 8 8 5 Most Carried 8 | 5 6 8 8 8 Average Carried 6 | 1 3 7 7 3 Final Capacity 8 | 8 8 8 8 5 Final Carried 8 | 1 6 8 8 4 Scrap Engine Consumption 3 | . . . . 3 Class Distribution -------------------- 89% | Mutant 10% | Derelict-Mutant Dominant Class ---------------- Mutant | -10/Materials Mutant | -10/Mines Mutant | -10/Subcaves Mutant | -9/Recycling Resources | -11 -10 -10 -10 -9 ----------- Run | Yrd Mat Min Sub Rec Matter Collected 1022 | 184 126 117 491 104 Remotely . | . . . . . Salvage Created 813 | . 410 84 319 . Parts 71 | . 26 9 36 . Haulers Intercepted . | . . . . . Recyclers Shooed 1 | . 1 . . . Parts Field Recycled . | . . . . . Retrieved Matter . | . . . . . Parts Self-Destructed 19 | . . . 19 . Prevented . | . . . . . Kills | -11 -10 -10 -10 -9 ------- Run | Yrd Mat Min Sub Rec Combat Hostiles Destroyed 39 | . 10 8 21 . Guns 1 | . 1 . . . Cannons 18 | . . . 18 . AOE 20 | . 9 8 3 . Classes Destroyed 9 | . 6 1 2 . Worker 1 | . 1 . . . Tunneler 1 | . . 1 . . Recycler 2 | . 1 1 . . Mechanic 1 | . 1 . . . Turret 2 | . . . 2 . Watcher 2 | . 2 . . . Swarmer 20 | . 3 8 9 . Grunt 7 | . 7 . . . Subdweller 12 | . . . 12 . Best Kill Streak 6 | . 6 4 3 . Combat Bots Only 3 | . 3 3 3 . Max Kills in Single Turn 4 | . 4 3 1 . Gunslinging . | . . . . . Exploded 3 | . 2 3 1 . Melee . | . . . . . Uniques/NPCs Destroyed . | . . . . . Combat | -11 -10 -10 -10 -9 -------- Run | Yrd Mat Min Sub Rec Hostile Shots Fired 219 | . 21 27 167 4 Missed 68 | . 8 5 52 3 Damage Taken 1231 | . 109 161 951 10 Core 258 | . 8 23 217 10 Absorbed by Shields . | . . . . . Ignored by Resistances 376 | . 35 53 285 3 Core Remaining (%) 100 | 100 . . . . Volleys Fired 95 | . 14 7 73 1 Largest 2 | . 2 2 2 2 Hottest 119 | . 100 63 119 78 Shots Fired 132 | . 18 9 103 2 Gun 8 | . 8 . . . Cannon 97 | . . . 95 2 Launcher 27 | . 10 9 8 . Special . | . . . . . Kinetic 84 | . . . 82 2 Thermal 21 | . 8 . 13 . Explosive 27 | . 10 9 8 . Electromagnetic . | . . . . . Robot Hit Streak 24 | . 11 14 24 3 Robot Miss Streak 3 | . 2 1 3 . Penetration Max . | . . . . . Secondary Targets . | . . . . . Shots Hit Robots 92 | . 14 6 70 2 Core Hits 60 | . 18 14 28 . Critical Kills . | . . . . . Critical Parts Destroyed . | . . . . . Critical Strikes 3 | . . . 3 . Blast 3 | . . . 3 . Melee Attacks . | . . . . . Impact . | . . . . . Slashing . | . . . . . Piercing . | . . . . . Sneak Attacks . | . . . . . Combat Hostiles . | . . . . . Follow-up Attacks . | . . . . . Damage Inflicted 3472 | . 810 672 1945 45 Guns 65 | . 65 . . . Cannons 1297 | . . . 1252 45 Explosions 2110 | . 745 672 693 . Melee . | . . . . . Ramming . | . . . . . Kinetic 1130 | . . . 1085 45 Thermal 232 | . 65 . 167 . Explosive 2110 | . 745 672 693 . Electromagnetic . | . . . . . Impact . | . . . . . Slashing . | . . . . . Piercing . | . . . . . Highest Corruption . | . . . . . Average Corruption . | . . . . . Corruption Purged . | . . . . . Corruption Blocked . | . . . . . Overload Shots . | . . . . . Overflow Damage 129 | . 56 47 26 . Projectiles 26 | . . . 26 . Explosions 103 | . 56 47 . . Melee . | . . . . . Knockbacks 11 | . . . 11 . Impact . | . . . . . Kinetic 11 | . . . 11 . Secondary . | . . . . . Self-Inflicted Damage 11 | . . . 11 . Shots 1 | . . . 1 . Rammed . | . . . . . Targets Rammed . | . . . . . Kicked . | . . . . . Crushed . | . . . . . Highest Temperature 135 | . 135 6 11 7 Average Temperature 31 | . 48 3 5 7 Received Heat Transfer 357 | . 66 . 291 . Siege Activations . | . . . . . Robots Corrupted . | . . . . . Combat Hostiles . | . . . . . Parts Fried . | . . . . . Impact Corruptions . | . . . . . Robots Melted . | . . . . . Combat Hostiles . | . . . . . Parts Melted . | . . . . . Heat Transferred 407 | . 185 . 222 . Parts Sabotaged . | . . . . . Parts Stolen . | . . . . . Parts Stripped . | . . . . . Power Chain Reactions . | . . . . . Alert | -11 -10 -10 -10 -9 ------- Run | Yrd Mat Min Sub Rec Peak Influence 288 | . 288 192 . 191 Initial 191 | . . 30 . 191 Average 99 | . 99 72 . 173 Maximum Alert Level 1 | . 1 . . . Low Security (%) 93 | 100 75 100 . 100 Level 1 6 | . 24 . . . Level 2 . | . . . . . Level 3 . | . . . . . Level 4 . | . . . . . Level 5 . | . . . . . High Security . | . . . . . Max Security . | . . . . . Squads Dispatched 2 | . 1 1 . . Investigation 2 | . 1 1 . . Extermination . | . . . . . Reinforcement . | . . . . . Assault . | . . . . . Garrison . | . . . . . Intercept . | . . . . . Searches Triggered . | . . . . . Construction Impeded . | . . . . . Haulers Reinforced . | . . . . . Active Scanning Responses . | . . . . . Cargo Convoy Interrupts . | . . . . . Stealth | -11 -10 -10 -10 -9 --------- Run | Yrd Mat Min Sub Rec Distress Signals 2 | . 2 . . . Communications Jammed . | . . . . . Distress Signals . | . . . . . Times Spotted 115 | . 15 7 92 1 Peak Tracking Total 6 | . 3 3 6 1 Tactical Retreats 4 | . . . 4 . Traps | -11 -10 -10 -10 -9 ------- Run | Yrd Mat Min Sub Rec Traps Triggered 2 | . 1 . 1 . Indirectly . | . . . . . Trap Hack Attempts . | . . . . . Triggered . | . . . . . Disarmed . | . . . . . Reprogrammed 3 | . 3 . . . Reused 1 | . 1 . . . Traps Extracted . | . . . . . Installed 1 | . . 1 . . Triggered 1 | . 1 . . . Most Traps Carried 1 | . . 1 . . Machines | -11 -10 -10 -10 -9 ---------- Run | Yrd Mat Min Sub Rec Machines Disabled 3 | . 2 . 1 . Max in Single Turn 1 | . 1 . 1 . Machines Repaired . | . . . . . Machines Dismantled . | . . . . . Machines Sabotaged . | . . . . . Overloaded Fab Kills . | . . . . . Hacking | -11 -10 -10 -10 -9 --------- Run | Yrd Mat Min Sub Rec Machines Accessed 15 | . 8 2 1 4 Terminals 6 | . 6 . . . Fabricators . | . . . . . Repair Stations . | . . . . . Recycling Units 6 | . 2 . . 4 Scanalyzers . | . . . . . Garrison Access . | . . . . . Total Hacks 33 | . 21 2 3 7 Successful 30 | . 18 2 3 7 Failed 3 | . 3 . . . Catastrophic . | . . . . . Database Lockouts . | . . . . . Manual . | . . . . . Terminals 15 | . 15 . . . Fabricators . | . . . . . Repair Stations . | . . . . . Recycling Units 13 | . 6 . . 7 Scanalyzers . | . . . . . Garrison Access . | . . . . . Terminal Hacks 17 | . 12 2 3 . Record 3 | . . . 3 . Prototype ID Bank 1 | . 1 . . . Open Door 2 | . . 2 . . Level Access Points 1 | . 1 . . . Emergency Access Points 1 | . 1 . . . Alert Level 1 | . 1 . . . Unreport Threat 1 | . 1 . . . Locate Traps 1 | . 1 . . . Reprogram Traps 1 | . 1 . . . Dispatch Records 1 | . 1 . . . Maintenance Status 1 | . 1 . . . Security Status 1 | . 1 . . . Zone Layout 2 | . 2 . . . Fabricator Hacks . | . . . . . Repair Station Hacks . | . . . . . Recycling Unit Hacks 13 | . 6 . . 7 Recycle Component 2 | . 2 . . . Process 2 | . 1 . . 1 Report Inventory 5 | . 1 . . 4 Retrieve Matter 2 | . 1 . . 1 Retrieve Components 2 | . 1 . . 1 Scanalyzer . | . . . . . Garrison Access Hacks . | . . . . . Unauthorized Hacks . | . . . . . Terminals . | . . . . . Fabricators . | . . . . . Repair Stations . | . . . . . Recycling Units . | . . . . . Scanalyzers . | . . . . . Garrison Access . | . . . . . Data Cores Recovered . | . . . . . Used . | . . . . . Hacking Detections 3 | . 3 . . . Full Trace Events . | . . . . . Feedback Events . | . . . . . Feedback Blocked . | . . . . . Robot Schematics Acquired . | . . . . . Robots Built . | . . . . . Authchips . | . . . . . Time . | . . . . . Total Robot Build Rating . | . . . . . Part Schematics Acquired . | . . . . . Parts Built . | . . . . . Authchips . | . . . . . Time . | . . . . . Total Part Build Rating . | . . . . . Parts Repaired . | . . . . . Time . | . . . . . Parts Recycled 2 | . 2 . . . Recycled Matter 88 | . 70 . . 18 Retrieved Matter 88 | . 70 . . 18 Retrieved Components 12 | . 9 . . 3 Parts Scanalyzed . | . . . . . Part Schematics Acquired . | . . . . . Parts Damaged . | . . . . . Bothacking | -11 -10 -10 -10 -9 ------------ Run | Yrd Mat Min Sub Rec Used RIF Installer . | . . . . . Robots Hacked . | . . . . . Non-combat . | . . . . . Combat . | . . . . . Robot Hacks Applied . | . . . . . Relay Couplers Released . | . . . . . Fabnet Peak Effective % . | . . . . . Robots Rewired . | . . . . . Allies Hacked . | . . . . . Hacks Repelled . | . . . . . Allies | -11 -10 -10 -10 -9 -------- Run | Yrd Mat Min Sub Rec Total Allies . | . . . . . Largest Group . | . . . . . Highest-Rated Group . | . . . . . Highest-Rated Ally . | . . . . . Total Orders . | . . . . . Ally Attacks . | . . . . . Total Damage . | . . . . . Kills . | . . . . . Allies Corrupted . | . . . . . Allies Melted . | . . . . . Intel | -11 -10 -10 -10 -9 ------- Run | Yrd Mat Min Sub Rec Robot Analysis Total . | . . . . . Derelict Logs Recovered 4 | . . 2 2 . Drone Launches . | . . . . . Drone Recoveries . | . . . . . Exploration | -11 -10 -10 -10 -9 ------------- Run | Yrd Mat Min Sub Rec Turns Passed 4266 | 59 577 1028 2163 439 Spaces Moved 2489 | 44 333 626 1223 263 Core 41 | 21 . . 20 . Treads 2448 | 23 333 626 1203 263 Legs . | . . . . . Wheels . | . . . . . Hover . | . . . . . Flight . | . . . . . Fastest Speed 50 | 50 160 160 150 160 Average Speed 158 | 107 160 160 159 160 Slowest Speed 160 | 160 160 160 160 160 Overloaded Moves . | . . . . . Propulsion Burnouts . | . . . . . Robots Hopped . | . . . . . Cave-ins Triggered . | . . . . . Exploration Rate (%) 57 | 4 71 98 67 47 Regions Visited 4 Branch Regions 3 Pre-discovered Areas 3 | . . 1 2 . Known Exits Taken 1 | . . . 1 . Unknown Exits Taken 3 | 1 1 1 . . Scrap Searched 13 | . . 1 12 . Spaces Dug . | . . . . . Terrain Destroyed 158 | . 50 65 43 . Melee . | . . . . . Projectile 1 | . . . 1 . AOE 157 | . 50 65 42 . Terrain Rammed . | . . . . . Walls Destroyed . | . . . . . Machines Disabled . | . . . . . Actions | -11 -10 -10 -10 -9 --------- Run | Yrd Mat Min Sub Rec Total 2672 | 56 359 644 1329 284 Wait 11 | . 3 . 1 7 Move 2485 | 43 332 625 1222 263 Hop . | . . . . . Pick Up 32 | 7 7 5 10 3 Fast Attach 2 | . . 1 1 . Attach 14 | 6 1 1 4 2 Detach 1 | . 1 . . . Swap 8 | . 1 1 6 . Drop 20 | . . 3 10 7 Fire 95 | . 14 7 73 1 Melee . | . . . . . Ram . | . . . . . Kick . | . . . . . Crush . | . . . . . Escape Stasis . | . . . . . Rewire 3 | . . . 2 1 Trap 1 | . . 1 . . Miscellaneous . | . . . . . Route ------- -11/Scrapyard -10/Materials (discovered 4 exits: *Mat x3 / *Min) -10/Mines (discovered 3 exits: *Mat x2 / *Sub) -10/Subcaves (discovered 2 exits: *Mat / *Rec) -9/Recycling History --------- Turn | Location | Event 11 | -11/Scrapyard | Discovered new exit (range 16) 60 | -11/Scrapyard | Entered Materials 119 | -10/Materials | Identified exit to Materials 172 | -10/Materials | Discovered new exit (range 15) 316 | -10/Materials | Build established: Mutant 637 | -10/Materials | Entered Mines 672 | -10/Mines | Met a Derelict who couldn't figure out how to use a Trap Extractor 701 | -10/Mines | Received a Rocket Launcher from a helpful Derelict 773 | -10/Mines | Discovered exit to Materials (range 12) 984 | -10/Mines | Found a hidden stash of uninstalled traps 1176 | -10/Mines | Met a Derelict shopkeep closing up shop 1325 | -10/Mines | Discovered exit to Materials (range 14) 1616 | -10/Mines | Learned Materials stockpile data 1650 | -10/Mines | Discovered new exit (range 10) 1665 | -10/Mines | Entered Subcaves 1734 | -10/Subcaves | Ambushed by Subdweller buried in earth 1848 | -10/Subcaves | Shifting Twisted Machinery released Battle Cannon 1851 | -10/Subcaves | Shifting Twisted Machinery released Battle Rifle 1854 | -10/Subcaves | Discovered new exit (range 13) 2026 | -10/Subcaves | Core integrity fell below 50% 2109 | -10/Subcaves | A swath of the cavern ceiling suddenly collapsed 2213 | -10/Subcaves | Disturbed a concealed Subdweller 2378 | -10/Subcaves | Shifting Twisted Machinery released Scrap Shield 2379 | -10/Subcaves | Shifting Twisted Machinery released Multitool 2384 | -10/Subcaves | Discovered new exit (range 8) 2397 | -10/Subcaves | Identified exit to Materials 2463 | -10/Subcaves | Ambushed by angry Subdweller bent on revenge 2512 | -10/Subcaves | Disturbed a concealed Subdweller 2638 | -10/Subcaves | A swath of the cavern ceiling suddenly collapsed 2709 | -10/Subcaves | Visited Clippyterm 2714 | -10/Subcaves | Learned Factory trap positions 2985 | -10/Subcaves | Learned Materials interactive machine intel 3005 | -10/Subcaves | Learned location of Zion (-7) 3005 | -10/Subcaves | Met a Zionite searching for "candidates" 3393 | -10/Subcaves | Core integrity fell below 20% 3826 | -10/Subcaves | Identified exit to Recycling 3828 | -10/Subcaves | Entered Recycling 3834 | -9/Recycling | Found Scrap Engine 4267 | -9/Recycling | Destroyed by Y-45 Defender with Heavy Assault Rifle Last Messages --------------- Hvy. EM Pulse Gun (13) >>Retrieve(Matter) Matter ejected: 18 Scrap Engine consumes Beam Rifle. Acquired 72 matter. Acquired 32 matter. Scrap Engine consumes Lgt. Assault Rifle. Connecting with Recycling Unit... >>Recycling(Report) Matter reserves: 0 Inventory: Particle Gun (41%) Connecting with Recycling Unit... >>Recycling(Report) Matter reserves: 0 Inventory: Rocket Launcher (74%) Arm. Wheel (40%) Particle Charger (100%) Y-45 Defender springs to life. Map ----- +----------------------------------------------------+ | | | | | | | | | | | | | | | | | | | ??????????????????????????????????????????? | | ??????????????????????????????????????????? | | ??????????????????????????????????????????? | | ??????????????????????????????????????????? | | ??????????????????????????????????????????? | | ??????????????????????????????????????????? | | ??????????????????????????????????????????? | | ??????????????????????????????????????????? | | ??????????????????????????????????????????? | | ??????????????????????????????????????????? | | ??????????????????????????????????????????? | | ??????????????????????????????????????????? | | ?????# ??????????????????????????????????? | | ?????# ########+#??????????????????????? | | ?????# #????????????##????????? | | ?????# #??????????? ????????? | | ?????# @###########? ?????????? | | ????#%Y + + ?????????? | | ?????# r### """"""" # ??????????? | | ?????#% ??# """"""" + ???????????? | | ?????# ???# """"""" #????????????? | | ?????#+##### ????# """"""" # ??? ### | | ???????????# ?????# """"""" # ? | | ???????????# ?????# # ? | | ???????????# ??????# # ? | | ???????????#???????##+######## ? | | ????????????????????# #??????# """ """ | | ????????????????????# #??????# """ """ | | ????????????????????# #??????# """ """ | | ????????????????????# #??????# | | ????????????????????# #??????# | | ????????????????????# #??????# """ """ | | ????????????????????# #??????# """ """ | | ????????????????????# #??????# """ """ | | ????????????????????# #?###### | | ???????????????????## ###"""## | | ???????????????????# ##"Y"## | | ???????????????????# | | ???????????????????# ######### | | ???????????????????## ##???????# ###### | | ????????????????????# #????????# | +----------------------------------------------------+ Best States ------------- Heat Dissipation 25 Energy Generation 15 Energy Capacity 265 Matter Stores 300 Matter Capacity 300 Sight Range 16 Terrain Scan Density 10 Resistance: KI 20 Resistance: TH 20 Resistance: EX 20 Resistance: EM 20 Resistance: I 20 Resistance: S 20 Resistance: P 20 Evasion (%) 50 Recoil Reduction 2 Offensive Hacking 10 Item Schematics ----------------- None Robot Schematics ------------------ None Fabricated ------------ Nothing Alien Tech Used ----------------- None Achievements -------------- None Challenges ------------ None Game ------ Seed UltimateSwordDatajack Manual? 0 Play Time 00:37:47 Cumulative 5.4 hours Start 2024.04.02 @ 07:15:02 End 2024.04.02 @ 07:48:50 Sessions 1 Manual Loads 0 Difficulty Adventurer Special Mode None Game No. 9 Rogue 4 Adventurer 5 Explorer 0 Win Type - Total 0 Types 0/0/0/0/0/0/0/0/0 Lore% 10 Gallery% 11 Achievement% 10 Wizard Run 0 Options --------- Layout 1 ASCII 0 Keyboard 0 Movement Mouse Keybinds 0 Fullscreen 1 Font 24/Smallcaps Map View 50x35 Zoom Use 0% Tactical HUD 0 Map Filters NONE Filters NONE Steam 1 RUN: f476c1db-5c02-4677-bce1-1bbfd20c8de1